[Event "LJ Slovak Open 2022"]
[Site "Liptovsky Jan"]
[Date "2022.06.24"]
[Round "2.5"]
[White "Rucek, Kristian"]
[Black "Valko, Michal"]
[Result "1/2-1/2"]
[ECO "E60"]
[WhiteElo "2128"]
[BlackElo "1906"]
[Annotator "RC"]
[PlyCount "99"]
[EventDate "2022.06.23"]
[EventType "swiss"]
[EventCountry "SVK"]
[SourceTitle "playchess.com"]
[Source "ChessBase"]
[SourceQuality "1"]
[TimeControl "3600+30"]

1. b3 {[%emt 0:00:04]} Nf6 {[%emt 0:02:56]} 2. Bb2 {[%emt 0:00:10]} g6 {[%emt 0:00:31]} 3. Nf3 {[%emt 0:00:38]} Bg7 {[%emt 0:00:08]} 4. c4 {[%emt 0:00:56]} O-O {[%emt 0:00:30]} 5. g3 {[%emt 0:00:41]} d6 {[%emt 0:01:03]} 6. d4 {[%emt 0:00:55]} Nbd7 {[%emt 0:03:16]} 7. Bg2 {[%emt 0:01:31]} c5 {[%emt 0:01:28]} 8. O-O {[%emt 0:00:27]} cxd4 {[%emt 0:03:51]} 9. Nxd4 {[%emt 0:01:07]} a5 {[%emt 0:02:32]} 10. Nc3 {[%emt 0:03:08]} Nc5 {[%emt 0:01:56]} 11. Ncb5 {[%emt 0:00:16]} a4 {[%emt 0:03:38]} 12. b4 {[%emt 0:01:21]} Ne6 {[%emt 0:00:14]} 13. a3 {[%emt 0:00:48]} Nxd4 {[%emt 0:04:24]} 14. Bxd4 {[%emt 0:01:47]} Be6 {[%emt 0:01:44]} 15. Rc1 {[%emt 0:04:14]} Rc8 {[%emt 0:01:28]} 16. Bxb7 {[%emt 0:04:59]} Rxc4 {[%emt 0:00:44]} 17. Qxa4 {[%emt 0:00:32]} Qd7 {[%emt 0:07:48]} 18. Qa6 {[%emt 0:01:26]} Rb8 {[%emt 0:03:59]} 19. Bc6 {[%emt 0:03:48]} Qxc6 {[%emt 0:03:36]} 20. Qxc6 {[%emt 0:00:09]} Rxc6 {[%emt 0:00:03]} 21. Rxc6 {[%emt 0:00:09]} Rxb5 {[%emt 0:00:05]} 22. Rb1 {[%emt 0:00:38]} Bf5 {[%emt 0:04:16]} 23. Rb2 {[%emt 0:00:38]} Rd5 {[%emt 0:00:24]} 24. Rc4 {[%emt 0:12:37]} e5 {[%emt 0:04:08]} 25. Ba7 {[%emt 0:04:31]} Rd1+ {[%emt 0:02:26]} 26. Kg2 {[%emt 0:00:09]} d5 {[%emt 0:00:24]} 27. Rc7 {[%emt 0:04:09]} d4 {[%emt 0:04:07]} 28. Rc5 {[%emt 0:03:03]} Ne4 {[%emt 0:00:33]} 29. Rd5 {[%emt 0:00:50]} Ng5 {[%emt 0:01:30]} 30. Rd8+ {[%emt 0:00:37]} Bf8 {[%emt 0:00:01]} 31. h4 {[%emt 0:01:27]} Ne6 {[%emt 0:03:06]} 32. Rb8 {[%emt 0:01:36]} Kg7 {[%emt 0:00:40]} 33. a4 {[%emt 0:00:22]} Nc7 {[%emt 0:02:13]} 34. b5 {[%emt 0:01:07]} Nd5 {[%emt 0:01:21]} 35. b6 {[%emt 0:01:52]} Be4+ {[%emt 0:00:33]} 36. f3 {[%emt 0:00:26]} Ne3+ {[%emt 0:00:04]} 37. Kh2 {[%emt 0:00:26]} Ng4+ {[%emt 0:01:43]} 38. Kh3 {[%emt 0:03:33]} Ne3 {[%emt 0:01:41]} 39. g4 {[%emt 0:00:41]} Rh1+ {[%emt 0:01:21]} 40. Kg3 {[%emt 0:00:01]} Be7 {[%emt 0:00:31]} 41. g5 {[%emt 0:01:11]} Bf5 {[%emt 0:00:24]} 42. b7 {[%emt 0:02:13]} Rh3+ {[%emt 0:01:19]} 43. Kf2 {[%emt 0:00:06]} Rh2+ {[%emt 0:01:41]} 44. Kg1 {[%emt 0:00:22]} Rg2+ {[%emt 0:01:01]} 45. Kh1 {[%emt 0:00:01]} Bd6 {[%emt 0:00:25]} 46. Rd8 {[%emt 0:00:23]} Rf2 {[%emt 0:00:50]} 47. Rxd6 {[%emt 0:10:10]} Rf1+ {[%emt 0:00:12]} 48. Kh2 {[%emt 0:00:03]} Rf2+ {[%emt 0:00:03]} 49. Kg1 {[%emt 0:00:10]} Rf1+ {[%emt 0:00:03]} 50. Kh2 {[%emt 0:00:07]} 1/2-1/2

[Event "LJ Slovak Open 2022"]
[Site "Liptovsky Jan"]
[Date "2022.06.24"]
[Round "2.6"]
[White "Mydliar, Jan"]
[Black "Holly, Andrej"]
[Result "0-1"]
[ECO "B70"]
[WhiteElo "1885"]
[BlackElo "2214"]
[Annotator "RC"]
[PlyCount "47"]
[EventDate "2022.06.23"]
[EventType "swiss"]
[EventCountry "SVK"]
[SourceTitle "playchess.com"]
[Source "ChessBase"]
[SourceQuality "1"]
[TimeControl "3600+30"]

1. e4 {[%emt 0:00:05]} c5 {[%emt 0:00:02]} 2. Nf3 {[%emt 0:00:06]} g6 {[%emt 0:00:03]} 3. d4 {[%emt 0:00:37]} cxd4 {[%emt 0:00:04]} 4. Nxd4 {[%emt 0:00:07]} Nf6 {[%emt 0:00:04]} 5. Nc3 {[%emt 0:00:19]} d6 {[%emt 0:01:01]} 6. g3 {[%emt 0:00:56]} Nc6 {[%emt 0:00:03]} 7. Bg2 {[%emt 0:02:12]} Bd7 {[%emt 0:01:02]} 8. Nde2 {[%emt 0:02:18]} Qc8 {[%emt 0:00:04]} 9. Bg5 {[%emt 0:06:12]} Bg7 {[%emt 0:00:53]} 10. Qc1 {[%emt 0:02:25]} h6 {[%emt 0:01:53]} 11. Bxf6 {[%emt 0:00:32]} Bxf6 {[%emt 0:00:14]} 12. Nd5 {[%emt 0:10:53]} Bg7 {[%emt 0:00:11]} 13. O-O {[%emt 0:06:29]} h5 {[%emt 0:05:04]} 14. h4 {[%emt 0:02:12]} Ne5 {[%emt 0:02:29]} 15. Nec3 {[%emt 0:07:24]} Bh6 {[%emt 0:05:51]} 16. Qd1 {[%emt 0:01:27]} g5 {[%emt 0:02:55]} 17. hxg5 {[%emt 0:03:46]} Bxg5 {[%emt 0:00:22]} 18. f4 {[%emt 0:01:37]} Qc5+ {[%emt 0:01:04]} 19. Kh1 {[%emt 0:01:38]} Ng4 {[%emt 0:00:46]} 20. fxg5 {[%emt 0:01:27]} h4 {[%emt 0:00:27]} 21. Bf3 {[%emt 0:03:55]} hxg3+ {[%emt 0:01:42]} 22. Kg2 {[%emt 0:00:21]} Ne3+ {[%emt 0:00:16]} 23. Nxe3 {[%emt 0:00:22]} Rh2+ {[%emt 0:00:02]} 24. Kxg3 {[%emt 0:00:26]} 0-1

[Event "LJ Slovak Open 2022"]
[Site "Liptovsky Jan"]
[Date "2022.06.24"]
[Round "2.7"]
[White "Borsos, Bogdan"]
[Black "Koska, Jiri"]
[Result "0-1"]
[ECO "A46"]
[WhiteElo "2200"]
[BlackElo "1759"]
[Annotator "RC"]
[PlyCount "62"]
[EventDate "2022.06.23"]
[EventType "swiss"]
[EventCountry "SVK"]
[SourceTitle "playchess.com"]
[Source "ChessBase"]
[SourceQuality "1"]
[TimeControl "3600+30"]

1. d4 {[%emt 0:01:00]} Nf6 {[%emt 0:00:09]} 2. Bg5 {[%emt 0:00:10]} e6 {[%emt 0:00:15]} 3. e4 {[%emt 0:00:22]} h6 {[%emt 0:00:12]} 4. Bxf6 {[%emt 0:00:16]} Qxf6 {[%emt 0:00:04]} 5. Nf3 {[%emt 0:03:22]} d6 {[%emt 0:01:10]} 6. e5 {[%emt 0:00:42]} dxe5 {[%emt 0:01:05]} 7. dxe5 {[%emt 0:00:14]} Qe7 {[%emt 0:00:52]} 8. c3 {[%emt 0:11:21]} Nc6 {[%emt 0:01:52]} 9. h4 {[%emt 0:02:40]} Bd7 {[%emt 0:03:30]} 10. Bd3 {[%emt 0:05:15]} O-O-O {[%emt 0:01:46]} 11. Nbd2 {[%emt 0:01:20]} g6 {[%emt 0:05:42]} 12. Qe2 {[%emt 0:00:47]} Bg7 {[%emt 0:03:03]} 13. O-O-O {[%emt 0:00:15]} g5 {[%emt 0:14:10]} 14. hxg5 {[%emt 0:01:51]} hxg5 {[%emt 0:00:10]} 15. g4 {[%emt 0:00:05]} f5 {[%emt 0:08:40]} 16. exf6 {[%emt 0:00:24]} Bxf6 {[%emt 0:00:36]} 17. Nc4 {[%emt 0:08:50]} Qg7 {[%emt 0:09:05]} 18. Be4 {[%emt 0:10:40]} Ne7 {[%emt 0:07:48]} 19. Rxh8 {[%emt 0:04:28]} Qxh8 {[%emt 0:01:59]} 20. Nce5 {[%emt 0:11:03]} Bxe5 {[%emt 0:06:05]} 21. Nxe5 {[%emt 0:00:06]} Qf6 {[%emt 0:00:07]} 22. Bxb7+ {[%emt 0:02:25]} Kxb7 {[%emt 0:00:58]} 23. Nxd7 {[%emt 0:00:05]} Qf4+ {[%emt 0:01:22]} 24. Kc2 {[%emt 0:00:16]} Qa4+ {[%emt 0:00:50]} 25. Kb1 {[%emt 0:01:34]} Rxd7 {[%emt 0:00:21]} 26. Re1 {[%emt 0:00:41]} Ng6 {[%emt 0:00:53]} 27. c4 {[%emt 0:02:35]} Nf4 {[%emt 0:00:28]} 28. Qf3+ {[%emt 0:00:26]} Kb8 {[%emt 0:00:06]} 29. Rh1 {[%emt 0:01:04]} Rd8 {[%emt 0:00:08]} 30. a3 {[%emt 0:00:40]} Qxc4 {[%emt 0:00:23]} 31. Ka1 {[%emt 0:00:26]} Qd5 {[%emt 0:00:16]} 0-1

[Event "LJ Slovak Open 2022"]
[Site "Liptovsky Jan"]
[Date "2022.06.24"]
[Round "2.8"]
[White "Harvan, Tomas"]
[Black "Varga, Lukas"]
[Result "0-1"]
[ECO "D78"]
[WhiteElo "1853"]
[BlackElo "2136"]
[Annotator "RC"]
[PlyCount "102"]
[EventDate "2022.06.23"]
[EventType "swiss"]
[EventCountry "SVK"]
[SourceTitle "playchess.com"]
[Source "ChessBase"]
[SourceQuality "1"]
[TimeControl "3600+30"]

1. d4 {[%emt 0:02:26]} Nf6 {[%emt 0:01:16]} 2. Nf3 {[%emt 0:00:07]} g6 {[%emt 0:00:08]} 3. g3 {[%emt 0:00:14]} Bg7 {[%emt 0:00:09]} 4. Bg2 {[%emt 0:00:10]} O-O {[%emt 0:00:07]} 5. O-O {[%emt 0:00:17]} d5 {[%emt 0:01:52]} 6. c4 {[%emt 0:02:11]} c6 {[%emt 0:01:24]} 7. Nc3 {[%emt 0:02:05]} dxc4 {[%emt 0:01:15]} 8. Ne5 {[%emt 0:05:15]} Be6 {[%emt 0:01:02]} 9. e4 {[%emt 0:03:53]} Qc8 {[%emt 0:08:26]} 10. Qe2 {[%emt 0:03:00]} b5 {[%emt 0:06:48]} 11. d5 {[%emt 0:05:16]} Bh3 {[%emt 0:00:12]} 12. Bxh3 {[%emt 0:13:28]} Qxh3 {[%emt 0:00:07]} 13. dxc6 {[%emt 0:00:31]} Nh5 {[%emt 0:11:21]} 14. Nf3 {[%emt 0:09:54]} Bxc3 {[%emt 0:01:02]} 15. bxc3 {[%emt 0:00:03]} Nxc6 {[%emt 0:00:12]} 16. Ng5 {[%emt 0:02:29]} Qc8 {[%emt 0:03:51]} 17. e5 {[%emt 0:07:25]} Ng7 {[%emt 0:01:45]} 18. Re1 {[%emt 0:00:39]} Qf5 {[%emt 0:03:40]} 19. g4 {[%emt 0:05:02]} Qd3 {[%emt 0:01:48]} 20. Qf3 {[%emt 0:02:49]} Qxf3 {[%emt 0:01:04]} 21. Nxf3 {[%emt 0:00:30]} Ne6 {[%emt 0:00:15]} 22. Rb1 {[%emt 0:00:22]} a6 {[%emt 0:00:23]} 23. Ba3 {[%emt 0:00:44]} Rfd8 {[%emt 0:00:39]} 24. Rbd1 {[%emt 0:01:07]} a5 {[%emt 0:01:27]} 25. Nd4 {[%emt 0:02:22]} Nexd4 {[%emt 0:00:29]} 26. cxd4 {[%emt 0:00:06]} b4 {[%emt 0:00:03]} 27. d5 {[%emt 0:00:18]} Na7 {[%emt 0:01:44]} 28. Bc1 {[%emt 0:00:03]} Nb5 {[%emt 0:00:40]} 29. Bg5 {[%emt 0:00:51]} Nc3 {[%emt 0:02:18]} 30. Rd4 {[%emt 0:01:11]} Rxd5 {[%emt 0:01:30]} 31. Rxc4 {[%emt 0:00:06]} Nxa2 {[%emt 0:01:11]} 32. Bxe7 {[%emt 0:00:15]} Nc3 {[%emt 0:02:00]} 33. Kg2 {[%emt 0:01:04]} Rb5 {[%emt 0:01:28]} 34. Bf6 {[%emt 0:00:34]} Nd5 {[%emt 0:00:30]} 35. Bg5 {[%emt 0:00:41]} b3 {[%emt 0:00:25]} 36. Rb1 {[%emt 0:00:27]} h5 {[%emt 0:00:30]} 37. gxh5 {[%emt 0:00:24]} gxh5 {[%emt 0:00:05]} 38. Rh4 {[%emt 0:00:39]} a4 {[%emt 0:00:38]} 39. Bc1 {[%emt 0:00:30]} Nc3 {[%emt 0:00:37]} 40. Ra1 {[%emt 0:00:31]} b2 {[%emt 0:01:58]} 41. Bxb2 {[%emt 0:00:06]} Rxb2 {[%emt 0:00:03]} 42. Rxh5 {[%emt 0:00:11]} Rb1 {[%emt 0:00:25]} 43. Ra3 {[%emt 0:00:30]} Rb3 {[%emt 0:00:04]} 44. Ra1 {[%emt 0:00:40]} Nb1 {[%emt 0:00:28]} 45. h4 {[%emt 0:00:50]} a3 {[%emt 0:00:15]} 46. Rg5+ {[%emt 0:00:06]} Kf8 {[%emt 0:00:07]} 47. h5 {[%emt 0:00:20]} Rb6 {[%emt 0:00:33]} 48. h6 {[%emt 0:00:50]} Ke7 {[%emt 0:00:38]} 49. h7 {[%emt 0:00:23]} Rh8 {[%emt 0:00:14]} 50. Rh5 {[%emt 0:00:08]} Rb2 {[%emt 0:00:35]} 51. Rh3 {[%emt 0:01:22]} Ke6 {[%emt 0:01:00]} 0-1

[Event "LJ Slovak Open 2022"]
[Site "Liptovsky Jan"]
[Date "2022.06.24"]
[Round "2.9"]
[White "Skreko, Igor"]
[Black "Haasova, Timea"]
[Result "1-0"]
[ECO "D30"]
[WhiteElo "2065"]
[BlackElo "1811"]
[Annotator "RC"]
[PlyCount "60"]
[EventDate "2022.06.23"]
[EventType "swiss"]
[EventCountry "SVK"]
[SourceTitle "playchess.com"]
[Source "ChessBase"]
[SourceQuality "1"]
[TimeControl "3600+30"]

1. d4 {[%emt 0:00:03]} d5 {[%emt 0:00:16]} 2. c4 {[%emt 0:00:05]} c6 {[%emt 0:00:15]} 3. Nf3 {[%emt 0:00:04]} Nf6 {[%emt 0:00:24]} 4. e3 {[%emt 0:00:05]} e6 {[%emt 0:02:07]} 5. b3 {[%emt 0:00:27]} Bd6 {[%emt 0:02:04]} 6. Bd3 {[%emt 0:00:22]} O-O {[%emt 0:00:21]} 7. O-O {[%emt 0:00:06]} Nbd7 {[%emt 0:00:59]} 8. Bb2 {[%emt 0:00:11]} Re8 {[%emt 0:00:49]} 9. Ne5 {[%emt 0:00:43]} Qc7 {[%emt 0:04:25]} 10. f4 {[%emt 0:00:50]} dxc4 {[%emt 0:02:01]} 11. bxc4 {[%emt 0:01:03]} c5 {[%emt 0:02:00]} 12. Nc3 {[%emt 0:02:18]} a6 {[%emt 0:01:49]} 13. Rf3 {[%emt 0:02:20]} g6 {[%emt 0:21:10]} 14. Rh3 {[%emt 0:03:38]} cxd4 {[%emt 0:03:41]} 15. exd4 {[%emt 0:00:06]} Bxe5 {[%emt 0:00:49]} 16. fxe5 {[%emt 0:00:47]} Nh5 {[%emt 0:05:31]} 17. Rxh5 {[%emt 0:04:03]} gxh5 {[%emt 0:00:50]} 18. Qxh5 {[%emt 0:00:07]} Nf8 {[%emt 0:00:41]} 19. Ne4 {[%emt 0:00:51]} f5 {[%emt 0:07:55]} 20. Nf6+ {[%emt 0:00:32]} Kh8 {[%emt 0:00:17]} 21. Nxe8 {[%emt 0:01:40]} Qd7 {[%emt 0:01:19]} 22. Nf6 {[%emt 0:01:29]} Qg7 {[%emt 0:00:20]} 23. Bc1 {[%emt 0:05:14]} Ng6 {[%emt 0:01:00]} 24. Bg5 {[%emt 0:01:47]} b6 {[%emt 0:01:08]} 25. Ne8 {[%emt 0:03:33]} Qd7 {[%emt 0:00:31]} 26. Bf6+ {[%emt 0:00:07]} Kg8 {[%emt 0:00:14]} 27. Nd6 {[%emt 0:00:08]} Bb7 {[%emt 0:00:45]} 28. Qh6 {[%emt 0:00:27]} Ra7 {[%emt 0:01:40]} 29. Bxf5 {[%emt 0:01:28]} Ba8 {[%emt 0:05:06]} 30. Bxg6 {[%emt 0:00:57]} hxg6 {[%emt 0:00:18]} 1-0

[Event "LJ Slovak Open 2022"]
[Site "Liptovsky Jan"]
[Date "2022.06.24"]
[Round "2.10"]
[White "Gollner, Martin"]
[Black "Kasperek, Ryszard"]
[Result "0-1"]
[ECO "B07"]
[WhiteElo "1585"]
[BlackElo "2068"]
[Annotator "RC"]
[PlyCount "50"]
[EventDate "2022.06.23"]
[EventType "swiss"]
[EventCountry "SVK"]
[SourceTitle "playchess.com"]
[Source "ChessBase"]
[SourceQuality "1"]
[TimeControl "3600+30"]

1. e4 {[%emt 0:00:20]} d6 {[%emt 0:00:53]} 2. d4 {[%emt 0:00:20]} Nd7 {[%emt 0:00:46]} 3. c4 {[%emt 0:01:19]} e5 {[%emt 0:05:05]} 4. d5 {[%emt 0:04:37]} Be7 {[%emt 0:05:04]} 5. Bd3 {[%emt 0:04:57]} Bg5 {[%emt 0:01:45]} 6. Nc3 {[%emt 0:04:09]} Bxc1 {[%emt 0:14:26]} 7. Qxc1 {[%emt 0:05:08]} Nc5 {[%emt 0:01:07]} 8. Bc2 {[%emt 0:00:43]} a5 {[%emt 0:00:04]} 9. Nge2 {[%emt 0:02:02]} Nf6 {[%emt 0:04:19]} 10. O-O {[%emt 0:02:03]} O-O {[%emt 0:00:05]} 11. f4 {[%emt 0:02:32]} exf4 {[%emt 0:01:26]} 12. Qxf4 {[%emt 0:02:34]} Ng4 {[%emt 0:03:19]} 13. Rf3 {[%emt 0:19:24]} Ne5 {[%emt 0:03:47]} 14. Rg3 {[%emt 0:00:18]} Qe7 {[%emt 0:10:00]} 15. b3 {[%emt 0:04:49]} Bd7 {[%emt 0:00:50]} 16. Nd4 {[%emt 0:02:19]} Ng6 {[%emt 0:04:00]} 17. Qf3 {[%emt 0:01:12]} Rae8 {[%emt 0:00:40]} 18. Nf5 {[%emt 0:01:17]} Qf6 {[%emt 0:00:54]} 19. Rf1 {[%emt 0:03:46]} Bxf5 {[%emt 0:01:24]} 20. exf5 {[%emt 0:00:14]} Ne5 {[%emt 0:01:57]} 21. Qh5 {[%emt 0:00:34]} Ned3 {[%emt 0:01:55]} 22. Nb5 {[%emt 0:01:57]} c6 {[%emt 0:01:38]} 23. Nxd6 {[%emt 0:00:46]} Qd4+ {[%emt 0:00:07]} 24. Kh1 {[%emt 0:00:18]} Nf2+ {[%emt 0:00:06]} 25. Kg1 {[%emt 0:00:38]} Nh3+ {[%emt 0:00:07]} 0-1

[Event "LJ Slovak Open 2022"]
[Site "Liptovsky Jan"]
[Date "2022.06.24"]
[Round "2.11"]
[White "Bombek, Peter"]
[Black "Vastik, Lukas"]
[Result "1/2-1/2"]
[ECO "C67"]
[WhiteElo "2111"]
[BlackElo "1738"]
[Annotator "RC"]
[PlyCount "80"]
[EventDate "2022.06.23"]
[EventType "swiss"]
[EventCountry "SVK"]
[SourceTitle "playchess.com"]
[Source "ChessBase"]
[SourceQuality "1"]
[TimeControl "3600+30"]

1. e4 {[%emt 0:00:07]} e5 {[%emt 0:00:08]} 2. Nf3 {[%emt 0:00:06]} Nc6 {[%emt 0:00:08]} 3. Bb5 {[%emt 0:00:11]} Nf6 {[%emt 0:00:06]} 4. O-O {[%emt 0:00:54]} Nxe4 {[%emt 0:00:13]} 5. Re1 {[%emt 0:00:27]} Nd6 {[%emt 0:00:38]} 6. Nxe5 {[%emt 0:00:45]} Be7 {[%emt 0:08:53]} 7. Bf1 {[%emt 0:03:35]} Nxe5 {[%emt 0:03:59]} 8. Rxe5 {[%emt 0:01:56]} O-O {[%emt 0:00:58]} 9. d4 {[%emt 0:00:31]} Bf6 {[%emt 0:02:51]} 10. Re1 {[%emt 0:00:20]} Nf5 {[%emt 0:04:56]} 11. c3 {[%emt 0:01:10]} d5 {[%emt 0:00:25]} 12. Bf4 {[%emt 0:00:50]} Ne7 {[%emt 0:07:22]} 13. Nd2 {[%emt 0:02:10]} Ng6 {[%emt 0:01:34]} 14. Bg3 {[%emt 0:00:36]} Bf5 {[%emt 0:00:46]} 15. Qf3 {[%emt 0:04:55]} Qd7 {[%emt 0:00:34]} 16. h3 {[%emt 0:07:19]} Rfe8 {[%emt 0:02:25]} 17. Bxc7 {[%emt 0:10:06]} Bxh3 {[%emt 0:01:31]} 18. Qxh3 {[%emt 0:00:55]} Qxc7 {[%emt 0:00:09]} 19. Bd3 {[%emt 0:02:38]} Qf4 {[%emt 0:05:42]} 20. Nf3 {[%emt 0:01:29]} Qd6 {[%emt 0:03:58]} 21. Rxe8+ {[%emt 0:07:15]} Rxe8 {[%emt 0:00:09]} 22. Re1 {[%emt 0:00:20]} Rxe1+ {[%emt 0:00:44]} 23. Nxe1 {[%emt 0:00:01]} Qd8 {[%emt 0:02:26]} 24. Bxg6 {[%emt 0:04:54]} hxg6 {[%emt 0:00:06]} 25. Nd3 {[%emt 0:00:08]} b6 {[%emt 0:01:33]} 26. Qf3 {[%emt 0:01:00]} Qd7 {[%emt 0:02:10]} 27. Nb4 {[%emt 0:02:49]} Qa4 {[%emt 0:02:04]} 28. Nxd5 {[%emt 0:02:06]} Qxa2 {[%emt 0:00:15]} 29. Nxf6+ {[%emt 0:03:24]} gxf6 {[%emt 0:00:01]} 30. Qxf6 {[%emt 0:01:20]} Qxb2 {[%emt 0:00:39]} 31. d5 {[%emt 0:00:43]} Qc1+ {[%emt 0:01:09]} 32. Kh2 {[%emt 0:00:07]} Qd2 {[%emt 0:01:50]} 33. d6 {[%emt 0:01:27]} a5 {[%emt 0:02:16]} 34. Qe7 {[%emt 0:02:48]} Qf4+ {[%emt 0:01:09]} 35. Kh3 {[%emt 0:00:35]} Qf5+ {[%emt 0:07:59]} 36. Kg3 {[%emt 0:00:20]} g5 {[%emt 0:00:15]} 37. f3 {[%emt 0:03:42]} Qf4+ {[%emt 0:00:25]} 38. Kf2 {[%emt 0:00:07]} Qd2+ {[%emt 0:01:17]} 39. Kg1 {[%emt 0:01:00]} Qc1+ {[%emt 0:00:09]} 40. Kf2 {[%emt 0:00:30]} Qd2+ {[%emt 0:00:16]} 1/2-1/2

[Event "LJ Slovak Open 2022"]
[Site "Liptovsky Jan"]
[Date "2022.06.24"]
[Round "2.12"]
[White "Kukan, Michal"]
[Black "Janousek, Petr"]
[Result "0-1"]
[ECO "D32"]
[WhiteElo "1767"]
[BlackElo "2099"]
[Annotator "RC"]
[PlyCount "74"]
[EventDate "2022.06.23"]
[EventType "swiss"]
[EventCountry "SVK"]
[SourceTitle "playchess.com"]
[Source "ChessBase"]
[SourceQuality "1"]
[TimeControl "3600+30"]

1. c4 {[%emt 0:03:37]} e6 {[%emt 0:01:53]} 2. d4 {[%emt 0:00:21]} d5 {[%emt 0:00:46]} 3. Nc3 {[%emt 0:00:18]} c5 {[%emt 0:00:03]} 4. cxd5 {[%emt 0:05:36]} cxd4 {[%emt 0:01:05]} 5. Qxd4 {[%emt 0:01:18]} Nc6 {[%emt 0:00:27]} 6. Qd1 {[%emt 0:04:12]} exd5 {[%emt 0:01:12]} 7. e3 {[%emt 0:02:53]} Nf6 {[%emt 0:00:13]} 8. a3 {[%emt 0:01:11]} Bd6 {[%emt 0:02:37]} 9. Nf3 {[%emt 0:00:04]} O-O {[%emt 0:00:11]} 10. Be2 {[%emt 0:00:14]} Re8 {[%emt 0:00:28]} 11. O-O {[%emt 0:00:29]} a6 {[%emt 0:00:49]} 12. Nd4 {[%emt 0:03:07]} Bc7 {[%emt 0:03:21]} 13. Bf3 {[%emt 0:03:16]} Qd6 {[%emt 0:02:26]} 14. g3 {[%emt 0:00:29]} Bh3 {[%emt 0:02:13]} 15. Re1 {[%emt 0:00:32]} Ne5 {[%emt 0:06:19]} 16. Bh1 {[%emt 0:01:13]} Bb6 {[%emt 0:03:30]} 17. Nce2 {[%emt 0:02:41]} Rac8 {[%emt 0:03:41]} 18. Qb3 {[%emt 0:06:39]} Ne4 {[%emt 0:05:47]} 19. Nf4 {[%emt 0:02:20]} Be6 {[%emt 0:04:47]} 20. Qd1 {[%emt 0:05:39]} Nf6 {[%emt 0:08:07]} 21. Bd2 {[%emt 0:02:33]} Bg4 {[%emt 0:05:37]} 22. Qb3 {[%emt 0:01:53]} Bxd4 {[%emt 0:07:18]} 23. exd4 {[%emt 0:00:13]} Nc4 {[%emt 0:00:19]} 24. Bb4 {[%emt 0:00:41]} Qc6 {[%emt 0:00:58]} 25. Rxe8+ {[%emt 0:00:49]} Rxe8 {[%emt 0:00:09]} 26. Rc1 {[%emt 0:00:53]} b5 {[%emt 0:00:16]} 27. Qc2 {[%emt 0:02:19]} g5 {[%emt 0:01:59]} 28. f3 {[%emt 0:05:57]} gxf4 {[%emt 0:00:55]} 29. fxg4 {[%emt 0:00:15]} a5 {[%emt 0:01:38]} 30. Be1 {[%emt 0:04:19]} Qe6 {[%emt 0:00:56]} 31. gxf4 {[%emt 0:01:24]} Nxg4 {[%emt 0:00:31]} 32. Qg2 {[%emt 0:01:24]} Qxe1+ {[%emt 0:00:17]} 33. Qf1 {[%emt 0:02:50]} Qxf1+ {[%emt 0:00:37]} 34. Rxf1 {[%emt 0:00:26]} Nf6 {[%emt 0:00:46]} 35. Rf2 {[%emt 0:00:31]} Re1+ {[%emt 0:00:24]} 36. Rf1 {[%emt 0:00:28]} Rxf1+ {[%emt 0:00:04]} 37. Kxf1 {[%emt 0:00:13]} Nxb2 {[%emt 0:00:02]} 0-1

[Event "LJ Slovak Open 2022"]
[Site "Liptovsky Jan"]
[Date "2022.06.24"]
[Round "2.13"]
[White "Wisniewski, Michal"]
[Black "Miciak, Emanuel"]
[Result "1-0"]
[ECO "A11"]
[WhiteElo "2073"]
[BlackElo "1804"]
[Annotator "RC"]
[PlyCount "53"]
[EventDate "2022.06.23"]
[EventType "swiss"]
[EventCountry "SVK"]
[SourceTitle "playchess.com"]
[Source "ChessBase"]
[SourceQuality "1"]
[TimeControl "3600+30"]

1. Nf3 {[%emt 0:00:05]} d5 {[%emt 0:00:21]} 2. c4 {[%emt 0:00:05]} c6 {[%emt 0:00:19]} 3. g3 {[%emt 0:00:09]} Nf6 {[%emt 0:00:31]} 4. Bg2 {[%emt 0:00:06]} Bf5 {[%emt 0:00:45]} 5. cxd5 {[%emt 0:00:06]} cxd5 {[%emt 0:00:07]} 6. Qb3 {[%emt 0:00:04]} Qc8 {[%emt 0:04:56]} 7. Nc3 {[%emt 0:00:31]} e6 {[%emt 0:00:58]} 8. d3 {[%emt 0:00:26]} Nc6 {[%emt 0:02:03]} 9. Bf4 {[%emt 0:00:06]} Nh5 {[%emt 0:01:09]} 10. Bd2 {[%emt 0:00:35]} Nf6 {[%emt 0:03:26]} 11. Rc1 {[%emt 0:05:57]} Be7 {[%emt 0:03:10]} 12. O-O {[%emt 0:01:01]} O-O {[%emt 0:02:27]} 13. Bf4 {[%emt 0:04:57]} Qd7 {[%emt 0:03:51]} 14. Rfd1 {[%emt 0:01:47]} Nh5 {[%emt 0:07:09]} 15. Ne5 {[%emt 0:04:06]} Nxe5 {[%emt 0:05:36]} 16. Bxe5 {[%emt 0:00:03]} f6 {[%emt 0:01:05]} 17. Bd4 {[%emt 0:00:19]} Kh8 {[%emt 0:01:49]} 18. e4 {[%emt 0:00:26]} e5 {[%emt 0:01:35]} 19. exf5 {[%emt 0:00:12]} exd4 {[%emt 0:00:18]} 20. Nxd5 {[%emt 0:00:05]} Bd6 {[%emt 0:00:34]} 21. Be4 {[%emt 0:00:20]} Rfc8 {[%emt 0:01:17]} 22. Rc2 {[%emt 0:02:36]} Rxc2 {[%emt 0:00:21]} 23. Qxc2 {[%emt 0:00:03]} Rc8 {[%emt 0:02:40]} 24. Qe2 {[%emt 0:00:06]} Qf7 {[%emt 0:00:01]} 25. Qf3 {[%emt 0:00:16]} g6 {[%emt 0:00:37]} 26. g4 {[%emt 0:00:13]} Ng7 {[%emt 0:01:54]} 27. fxg6 {[%emt 0:00:05]} 1-0